fUSD/lending_fUSD_20250415
["ID","MTS","AMOUNT","RATE_DAILY","PERIOD"]
[358095866,1744709439262,-500.0,0.00017876,2]
[358095867,1744709439271,-515.0,0.00017876,2]
[358095868,1744709439281,-500.0,0.00017876,2]
[358095869,1744709439290,-500.0,0.00017876,2]
[358095870,1744709439299,-500.0,0.00017876,2]
[358095871,1744709439308,-500.0,0.00017876,2]
[358095872,1744709439317,-500.0,0.00017876,2]
[358095873,1744709439327,-500.0,0.00017876,2]
[358095874,1744709439336,-500.0,0.00017876,2]
[358095875,1744709439346,-500.0,0.00017876,2]
[358095876,1744709439355,-752.913517,0.00017894,2]
[358095877,1744709439365,-752.913517,0.00017894,2]
[358095878,1744709439384,-155.207611,0.00017894,2]
[358095879,1744709439394,-6725.38526915,0.00017899,2]
[358095880,1744709439404,-164.26111004,0.00017899,2]
[358095881,1744709439414,-6725.38526913,0.00017899,2]
[358095882,1744709439424,-6725.38526913,0.00017899,2]
[358095883,1744709439434,-164.26111004,0.00017899,2]
[358095884,1744709439445,-6725.38526913,0.00017899,2]
[358095885,1744709439455,-6725.38526913,0.00017899,2]
[358095886,1744709439465,-164.26111004,0.000179,2]
[358095887,1744709439474,-6725.38526913,0.000179,2]
[358095888,1744709439484,-6725.38526913,0.000179,2]
[358095889,1744709439494,-164.26111004,0.000179,2]
[358095890,1744709439504,-6725.38526913,0.000179,2]
[358095891,1744709439513,-6725.38526913,0.000179,2]
[358095892,1744709439523,-546.17758238,0.000179,2]
[358095893,1744709439533,-32132.5567,0.000179,2]
[358095894,1744709439543,-6725.38526913,0.000179,2]
[358095895,1744709439552,-164.26111004,0.000179,2]
[358095896,1744709439562,-500.0,0.00017973,2]
[358095897,1744709439572,-668.65185757,0.00017989,2]
[358095898,1744709439582,-207.4,0.00017989,2]
[358095899,1744709439592,-500.0,0.00017998,2]
[358095900,1744709439602,-500.0,0.00017998,2]
[358095901,1744709439611,-500.0,0.00017998,2]
[358095902,1744709439621,-500.0,0.00017998,2]
[358095903,1744709439631,-500.0,0.00017998,2]
[358095904,1744709439641,-500.0,0.00017998,2]
[358095905,1744709439651,-500.0,0.00017998,2]
[358095906,1744709439660,-500.0,0.00017998,2]
[358095907,1744709439671,-500.0,0.00017998,2]
[358095908,1744709439681,-500.0,0.00017998,2]
[358095909,1744709439690,-500.0,0.00017998,2]
[358095910,1744709439701,-500.0,0.00017998,2]
[358095911,1744709439712,-500.0,0.00017998,2]
[358095912,1744709439722,-500.0,0.00017998,2]
[358095913,1744709439731,-500.0,0.00017998,2]
[358095914,1744709439738,-500.0,0.00017998,2]
[358095915,1744709439746,-500.0,0.00017998,2]
[358095916,1744709439755,-500.0,0.00017998,2]
[358095917,1744709439763,-500.0,0.00017998,2]
[358095918,1744709439772,-500.0,0.00017998,2]
[358095919,1744709439781,-500.0,0.00017998,2]
[358095920,1744709439791,-500.0,0.00017998,2]
[358095921,1744709439800,-500.0,0.00017998,2]
[358095922,1744709439809,-500.0,0.00017998,2]
[358095923,1744709439819,-500.0,0.00017998,2]
[358095924,1744709439828,-500.0,0.00017998,2]
[358095925,1744709439837,-500.0,0.00017998,2]
[358095926,1744709439847,-500.0,0.00017998,2]
[358095927,1744709439858,-500.0,0.00017998,2]
[358095928,1744709439868,-500.0,0.00017998,2]
[358095929,1744709439877,-500.0,0.00017998,2]
[358095930,1744709439887,-500.0,0.00017998,2]
[358095931,1744709439897,-500.0,0.00017998,2]
[358095932,1744709439908,-500.0,0.00017998,2]
[358095933,1744709439917,-500.0,0.00017998,2]
[358095934,1744709439929,-500.0,0.00017998,2]
[358095935,1744709439939,-500.0,0.00017998,2]
[358095936,1744709439950,-500.0,0.00017998,2]
[358095937,1744709439959,-500.0,0.00017998,2]
[358095938,1744709439969,-500.0,0.00017998,2]
[358095940,1744709439978,-500.0,0.00017998,2]
[358095941,1744709439988,-213.89587466,0.00017998,2]
[358095942,1744709439997,-500.0,0.00017998,2]
[358095943,1744709440007,-500.0,0.00017998,2]
[358095944,1744709440017,-273.40777574,0.00017998,2]
[358095945,1744709440026,-500.0,0.00017998,2]
[358095946,1744709440036,-500.0,0.00017998,2]
[358095947,1744709440045,-500.0,0.00017998,2]
[358095948,1744709440055,-500.0,0.00017998,2]
[358095949,1744709440064,-500.0,0.00017998,2]
[358095950,1744709440074,-500.0,0.00017998,2]
[358095951,1744709440083,-500.0,0.00017998,2]
[358095953,1744709440093,-500.0,0.00017998,2]
[358095954,1744709440102,-500.0,0.00017998,2]
[358095956,1744709440111,-500.0,0.00017998,2]
[358095957,1744709440121,-500.0,0.00017998,2]
[358095959,1744709440130,-500.0,0.00017998,2]
[358095960,1744709440139,-500.0,0.00017998,2]
[358095961,1744709440148,-500.0,0.00017998,2]
[358095962,1744709440158,-524.63404989,0.00017998,2]
[358095963,1744709440167,-500.0,0.00017998,2]
[358095964,1744709440176,-500.0,0.00017998,2]
[358095965,1744709440185,-500.0,0.00017998,2]
[358095966,1744709440195,-500.0,0.00017998,2]
[358095967,1744709440204,-500.0,0.00017998,2]
[358095968,1744709440214,-500.0,0.00017998,2]
[358095969,1744709440223,-500.0,0.00017998,2]
[358095970,1744709440233,-165.21020902,0.00017998,2]
[358095971,1744709440242,-176.03560252,0.00017998,2]
[358095972,1744709440251,-500.0,0.00017998,2]
[358095973,1744709440260,-500.0,0.00017998,2]
[358095974,1744709440270,-500.0,0.00017998,2]
[358095975,1744709440280,-500.0,0.00017998,2]
[358095976,1744709440290,-500.0,0.00017998,2]
[358095977,1744709440299,-500.0,0.00017998,2]
[358095978,1744709440308,-500.0,0.00017998,2]
[358095979,1744709440317,-614.99835066,0.00017998,2]
[358095980,1744709440326,-500.0,0.00017998,2]
[358095981,1744709440335,-500.0,0.00017998,2]
[358095982,1744709440345,-500.0,0.00017998,2]
[358095983,1744709440354,-500.0,0.00017998,2]
[358095984,1744709440363,-500.0,0.00017998,2]
[358095985,1744709440373,-500.0,0.00017998,2]
[358095986,1744709440383,-500.0,0.00017998,2]
[358095987,1744709440393,-500.0,0.00017998,2]
[358095988,1744709440402,-500.0,0.00017998,2]
[358095989,1744709440412,-500.0,0.00017998,2]
[358095990,1744709440422,-500.0,0.00017998,2]
[358095991,1744709440431,-500.0,0.00017998,2]
[358095992,1744709440440,-500.0,0.00017998,2]
[358095993,1744709440451,-500.0,0.00017998,2]
[358095994,1744709440460,-500.0,0.00017998,2]
[358095995,1744709440470,-500.0,0.00017998,2]
[358095996,1744709440479,-500.0,0.00017998,2]
[358095997,1744709440489,-500.0,0.00017999,2]
[358095998,1744709440499,-500.0,0.00017999,2]
[358095999,1744709440509,-500.0,0.00017999,2]
[358096000,1744709440519,-513.07947964,0.00017999,2]
[358096001,1744709440528,-2788.8512306,0.00017999,2]
[358096002,1744709440539,-581.2,0.00017999,2]
[358096003,1744709440549,-500.0,0.00017999,2]
[358096004,1744709440558,-500.0,0.00017999,2]
[358096005,1744709440567,-500.0,0.00017999,2]
[358096006,1744709440576,-500.0,0.00017999,2]
[358096007,1744709440586,-500.0,0.00017999,2]
[358096008,1744709440595,-277.18,0.00017999,2]
[358096009,1744709440606,-500.0,0.00017999,2]
[358096010,1744709440616,-500.0,0.00017999,2]
[358096011,1744709440625,-251.31,0.00017999,2]
[358096012,1744709440635,-500.0,0.00017999,2]
[358096013,1744709440644,-500.0,0.00017999,2]
[358096014,1744709440653,-357.12,0.00017999,2]
[358096015,1744709440663,-500.0,0.00017999,2]
[358096016,1744709440673,-628.08,0.00017999,2]
[358096017,1744709440682,-513.61389225,0.00017999,2]
[358096018,1744709440691,-272.94395445,0.00017999,2]
[358096019,1744709440701,-420.74434952,0.00017999,2]
[358096020,1744709440710,-500.0,0.00017999,2]
[358096021,1744709440721,-500.0,0.00017999,2]
[358096022,1744709440731,-500.0,0.00017999,2]
[358096023,1744709440741,-580.71,0.00017999,2]
[358096024,1744709440751,-500.0,0.00017999,2]
[358096025,1744709440760,-500.0,0.00017999,2]
[358096026,1744709440770,-500.0,0.00017999,2]
[358096027,1744709440779,-508.9210108,0.00017999,2]
[358096028,1744709440788,-500.0,0.00017999,2]
[358096029,1744709440797,-500.0,0.00017999,2]
[358096030,1744709440807,-500.0,0.00017999,2]
[358096031,1744709440816,-500.0,0.00017999,2]
[358096032,1744709440825,-500.0,0.00017999,2]
[358096033,1744709440835,-500.0,0.00017999,2]
[358096034,1744709440846,-500.0,0.00017999,2]
[358096035,1744709440859,-500.0,0.00017999,2]
[358096036,1744709440868,-502.39,0.00017999,2]
[358096037,1744709440878,-500.0,0.00017999,2]
[358096038,1744709440889,-500.0,0.00017999,2]
[358096039,1744709440898,-500.0,0.00017999,2]
[358096040,1744709440909,-500.0,0.00017999,2]
[358096041,1744709440918,-500.0,0.00017999,2]
[358096042,1744709440929,-500.0,0.00017999,2]
[358096043,1744709440939,-500.0,0.00017999,2]
[358096044,1744709440951,-500.0,0.00017999,2]
[358096045,1744709440969,-500.0,0.00017999,2]
[358096047,1744709440988,-500.0,0.00017999,2]
[358096048,1744709440998,-500.0,0.00017999,2]
[358096049,1744709441009,-500.0,0.00017999,2]
[358096050,1744709441019,-500.0,0.00017999,2]
[358096051,1744709441028,-500.0,0.00017999,2]
[358096052,1744709441037,-643.18,0.00017999,2]
[358096053,1744709441047,-500.0,0.00017999,2]
[358096054,1744709441056,-500.0,0.00017999,2]
[358096055,1744709441065,-500.0,0.00017999,2]
[358096056,1744709441075,-500.0,0.00017999,2]
[358096057,1744709441085,-500.0,0.00017999,2]
[358096058,1744709441094,-500.0,0.00017999,2]
[358096059,1744709441103,-569.72,0.00017999,2]
[358096060,1744709441112,-500.0,0.00017999,2]
[358096061,1744709441121,-500.0,0.00017999,2]
[358096062,1744709441131,-500.0,0.00017999,2]
[358096063,1744709441140,-500.0,0.00017999,2]
[358096064,1744709441149,-300.61,0.00017999,2]
[358096065,1744709441159,-500.0,0.00017999,2]
[358096066,1744709441168,-567.72014274,0.00017999,2]
[358096067,1744709441177,-514.76804744,0.00017999,2]
[358096068,1744709441185,-500.0,0.00017999,2]
[358096069,1744709441193,-500.0,0.00017999,2]
[358096070,1744709441201,-534.46798961,0.00017999,2]
[358096071,1744709441210,-500.0,0.00017999,2]
[358096072,1744709441219,-626.48,0.00017999,2]
[358096073,1744709441228,-509.48608151,0.00017999,2]
[358096074,1744709441237,-436.84455005,0.00017999,2]
[358096075,1744709441247,-500.0,0.00017999,2]
[358096076,1744709441256,-583.02074856,0.00017999,2]
[358096077,1744709441266,-500.0,0.00017999,2]
[358096078,1744709441275,-526.37565954,0.00017999,2]
[358096079,1744709441284,-500.0,0.00017999,2]
[358096080,1744709441294,-500.0,0.00017999,2]
[358096081,1744709441303,-524.32604248,0.00017999,2]
[358096082,1744709441313,-500.0,0.00017999,2]
[358096083,1744709441323,-500.0,0.00017999,2]
[358096084,1744709441332,-524.85605284,0.00017999,2]
[358096085,1744709441341,-500.0,0.00017999,2]
[358096086,1744709441351,-500.0,0.00017999,2]
[358096087,1744709441360,-500.0,0.00017999,2]
[358096088,1744709441370,-500.0,0.00017999,2]
[358096089,1744709441379,-500.0,0.00017999,2]
[358096090,1744709441388,-500.0,0.00017999,2]
[358096091,1744709441398,-581.34000002,0.00017999,2]
[358096092,1744709441407,-500.0,0.00017999,2]
[358096093,1744709441417,-205.18,0.00017999,2]
[358096094,1744709441427,-500.0,0.00017999,2]
[358096095,1744709441436,-517.98823168,0.00017999,2]
[358096096,1744709441447,-500.0,0.00017999,2]
[358096097,1744709441458,-500.0,0.00017999,2]
[358096098,1744709441467,-500.0,0.00017999,2]
[358096099,1744709441478,-27.89570401,0.00017999,2]
[358096100,1744709441529,-472.10429599,0.00017999,2]
[358096101,1744709441539,-500.0,0.00017999,2]
[358096102,1744709441549,-500.0,0.00017999,2]
[358096103,1744709441559,-500.0,0.00017999,2]
[358096104,1744709441568,-161.90073423,0.00017999,2]
[358096105,1744709441633,-338.09926577,0.00017999,2]
[358096106,1744709441642,-533.18,0.00017999,2]
[358096107,1744709441652,-201.58584119,0.00017999,2]
[358096108,1744709441661,-500.0,0.00017999,2]
[358096109,1744709441671,-500.0,0.00017999,2]
[358096110,1744709441681,-500.0,0.00017999,2]
[358096111,1744709441690,-500.0,0.00017999,2]
[358096112,1744709441700,-500.0,0.00017999,2]
[358096113,1744709441711,-500.0,0.00017999,2]
[358096114,1744709441720,-528.72,0.00017999,2]
[358096115,1744709441730,-500.0,0.00017999,2]
[358096116,1744709441739,-500.0,0.00017999,2]
[358096117,1744709441748,-500.0,0.00017999,2]
[358096118,1744709441758,-500.0,0.00017999,2]
[358096119,1744709441768,-500.0,0.00017999,2]
[358096120,1744709441777,-500.0,0.00017999,2]
[358096121,1744709441787,-500.0,0.00017999,2]
[358096122,1744709441796,-500.0,0.00017999,2]
[358096123,1744709441805,-527.89071305,0.00017999,2]
[358096124,1744709441815,-504.46144988,0.00017999,2]
[358096125,1744709441825,-500.0,0.00017999,2]
[358096126,1744709441835,-622.41214838,0.00017999,2]
[358096127,1744709441848,-500.0,0.00017999,2]
[358096128,1744709441858,-500.0,0.00017999,2]
[358096129,1744709441870,-502.5786107,0.00017999,2]
[358096130,1744709441880,-178.06037325,0.00017999,2]
[358096131,1744709441891,-500.0,0.00017999,2]
[358096132,1744709441900,-324.58279573,0.00017999,2]
[358096133,1744709441912,-175.41720427,0.00017999,2]
[358096134,1744709441922,-500.0,0.00017999,2]
[358096135,1744709441932,-500.0,0.00017999,2]
[358096136,1744709441942,-500.0,0.00017999,2]
[358096137,1744709441953,-506.02043588,0.00017999,2]
[358096138,1744709441963,-1.33196536,0.00017999,2]
[358096139,1744709441975,-498.66803464,0.00017999,2]
[358096140,1744709441984,-500.0,0.00017999,2]
[358096141,1744709441993,-500.0,0.00017999,2]
[358096142,1744709442003,-500.0,0.00017999,2]
[358096143,1744709442012,-500.0,0.00017999,2]
[358096144,1744709442022,-500.0,0.00017999,2]
[358096145,1744709442031,-196.50693649,0.00017999,2]
[358096146,1744709442046,-303.49306351,0.00017999,2]
[358096147,1744709442055,-38.51788678,0.00017999,2]
[358096148,1744709442067,-461.48211322,0.00017999,2]
[358096149,1744709442076,-194.06844707,0.00017999,2]
[358096150,1744709442085,-500.0,0.00017999,2]
[358096151,1744709442095,-308.69167991,0.00017999,2]
[358096166,1744709487760,630.24,0.0001505,2]
[358096167,1744709487980,630.24,0.00017314,2]
[358096168,1744709629984,169.17,0.0001729,2]
[358096169,1744709695354,250.0,0.00017214,2]
[358096170,1744709714369,204.34,0.00017214,2]
[358096171,1744709722375,200.0,0.00017171,2]
[358096172,1744709766033,-450.0,0.00022,23]
[358096173,1744709774391,1000.0,0.00017137,2]
[358096174,1744709818073,171.25,0.0001371,2]
[358096175,1744709856961,19458.02,0.00017094,2]
[358096176,1744710060417,-1731.75686904,0.00017619,2]
[358096177,1744710080882,-623.25393696,0.00017619,2]
[358096178,1744710080912,-1523.58234,0.00017708,2]
[358096179,1744710080941,-175.86672541,0.0001772,2]
[358096180,1744710080971,-436.72717665,0.00017781,2]
[358096181,1744710081002,-151.9294946,0.0001782,2]
[358096182,1744710081032,-300.0,0.00017897,2]
[358096183,1744710081063,-3490.8322,0.00017898,2]
[358096184,1744710081094,-745.2014,0.00017898,2]
[358096185,1744710081124,-500.0,0.000179,2]
[358096186,1744710081157,-31499.1338,0.000179,2]
[358096187,1744710081187,-223.6793,0.000179,2]
[358096188,1744710081225,-807.5979,0.000179,2]
[358096189,1744710081259,-184.9648083,0.000179,2]
[358096190,1744710081290,-657.04444016,0.000179,2]
[358096191,1744710081319,-1271.94994581,0.000179,2]
[358096192,1744710081350,-3529.86588014,0.000179,2]
[358096193,1744710081381,-1811.13477938,0.000179,2]
[358096194,1744710081411,-358.006,0.00017961,2]
[358096195,1744710081440,-500.0,0.00017973,2]
[358096196,1744710081469,-160.57739387,0.00017973,2]
[358096197,1744710081500,-159.94870666,0.00017973,2]
[358096198,1744710081530,-500.0,0.00017973,2]
[358096199,1744710081559,-2447.2864935,0.00017986,2]
[358096200,1744710081588,-7702.4763942,0.00017986,2]
[358096201,1744710081618,-2131.6830476,0.00017988,2]
[358096202,1744710081647,-1816.0796017,0.00017988,2]
[358096203,1744710081676,-9906.2037743,0.00017988,2]
[358096204,1744710081706,-12109.9311543,0.00017988,2]
[358096205,1744710081736,-151.0,0.00017989,2]
[358096206,1744710081766,-424.04330646,0.00017989,2]
[358096207,1744710086686,-362.56785358,0.000176,2]
[358096208,1744710128473,3358.282936,7.945e-05,2]
[358096209,1744710145377,250.0,0.00017248,2]
[358096210,1744710183835,200.0,0.00017162,2]
[358096211,1744710209538,152.52,0.0001713,2]
[358096212,1744710374444,200.0,0.00017044,2]
[358096213,1744710504891,5015.74,0.0001703,2]
[358096223,1744710566843,-368.52030429,0.00017563,2]
[358096226,1744710580536,1000.0,0.000179,3]
[358096227,1744710581246,1000.0,0.000179,3]
[358096232,1744710632217,-31.12721082,0.00017563,2]
[358096233,1744710632227,-250.0,0.00017681,2]
[358096234,1744710632236,-4031.9828212,0.00017741,2]
[358096235,1744710632248,-4411.61070056,0.00017741,2]
[358096236,1744710632271,-1591.40647824,0.00017741,2]
[358096237,1744710632280,-1000.0,0.000178,2]
[358096238,1744710632289,-151.9294947,0.0001782,2]
[358096239,1744710632300,-300.0,0.00017893,2]
[358096240,1744710632309,-376.456758,0.00017894,2]
[358096241,1744710632318,-376.456758,0.00017894,2]
[358096242,1744710632327,-160.584375,0.00017894,2]
[358096243,1744710632337,-161.108691,0.00017894,2]
[358096244,1744710632348,-1129.370276,0.00017894,2]
[358096245,1744710632359,-1129.370276,0.00017894,2]
[358096246,1744710632368,-155.207611,0.00017894,2]
[358096247,1744710632377,-300.0,0.00017898,2]
[358096248,1744710632386,-7732.90928206,0.00017899,2]
[358096249,1744710632398,-2432.4365655,0.00017899,2]
[358096250,1744710632416,-21967.21085244,0.00017899,2]
[358096251,1744710632426,-164.26111004,0.00017899,2]
[358096252,1744710632436,-1006.8399,0.000179,2]
[358096253,1744710632445,-180.79389353,0.000179,2]
[358096254,1744710632455,-383.89961231,0.000179,2]
[358096255,1744710632465,-1000.0,0.000179,2]
[358096256,1744710632474,-481.46980546,0.000179,2]
[358096257,1744710632497,-336.66692717,0.000179,2]
[358096258,1744710632508,-181.86326737,0.000179,2]
[358096259,1744710632518,-1000.0,0.000179,2]
[358096260,1744710632529,-359.42877263,0.000179,2]
[358096261,1744710632542,-538.74912648,0.000179,2]
[358096262,1744710632554,-101.82210089,0.000179,2]
[358096263,1744710632564,-257.36789311,0.000179,2]
[358096283,1744710638194,-484.44141149,0.000179,2]
[358096284,1744710638254,-19700.34201078,0.000179,2]
[358096285,1744710638265,-1000.0,0.000179,2]
[358096286,1744710638275,-1000.0,0.000179,2]
[358096287,1744710638284,-161.77303684,0.00017973,2]
[358096288,1744710638294,-500.0,0.00017973,2]
[358096289,1744710638303,-507.98354872,0.00017973,2]
[358096290,1744710638313,-500.53474454,0.00017973,2]
[358096291,1744710638322,-500.0,0.00017973,2]
[358096292,1744710638332,-403.44864785,0.00017973,2]
[358096293,1744710638341,-502.72153642,0.00017973,2]
[358096294,1744710638354,-301.64424214,0.00017973,2]
[358096295,1744710638363,-500.0,0.00017973,2]
[358096296,1744710638372,-668.65185757,0.00017989,2]
[358096297,1744710638383,-207.4,0.00017989,2]
[358096298,1744710638394,-278.96032742,0.0001799,2]
[358096299,1744710638404,-278.96032742,0.0001799,2]
[358096300,1744710638414,-278.96032742,0.0001799,2]
[358096301,1744710638423,-500.0,0.00017998,2]
[358096302,1744710638435,-513.61389225,0.00017998,2]
[358096303,1744710638446,-508.9210108,0.00017998,2]
[358096304,1744710638456,-500.0,0.00017998,2]
[358096305,1744710638467,-500.0,0.00017998,2]
[358096306,1744710638477,-500.0,0.00017998,2]
[358096307,1744710638486,-626.48,0.00017998,2]
[358096308,1744710638496,-277.18,0.00017998,2]
[358096309,1744710638506,-509.48608151,0.00017998,2]
[358096310,1744710638514,-436.84455005,0.00017998,2]
[358096311,1744710638523,-500.0,0.00017998,2]
[358096312,1744710638533,-500.0,0.00017998,2]
[358096313,1744710638542,-500.0,0.00017998,2]
[358096315,1744710638551,-500.0,0.00017998,2]
[358096316,1744710638562,-500.0,0.00017998,2]
[358096317,1744710638571,-567.72014274,0.00017998,2]
[358096318,1744710638581,-500.0,0.00017998,2]
[358096319,1744710638590,-514.76804744,0.00017998,2]
[358096320,1744710638600,-500.0,0.00017998,2]
[358096321,1744710638610,-534.46798961,0.00017998,2]
[358096323,1744710638619,-555.41430616,0.00017998,2]
[358096325,1744710638628,-500.0,0.00017998,2]
[358096327,1744710638638,-500.0,0.00017998,2]
[358096329,1744710638648,-500.0,0.00017998,2]
[358096331,1744710638657,-500.0,0.00017998,2]
[358096332,1744710638666,-500.0,0.00017998,2]
[358096334,1744710638676,-500.0,0.00017998,2]
[358096336,1744710638685,-583.02074856,0.00017998,2]
[358096338,1744710638695,-500.0,0.00017998,2]
[358096340,1744710638704,-500.0,0.00017998,2]
[358096342,1744710638714,-500.0,0.00017998,2]
[358096344,1744710638723,-500.0,0.00017998,2]
[358096346,1744710638733,-500.0,0.00017998,2]
[358096348,1744710638742,-500.0,0.00017998,2]
[358096350,1744710638752,-500.0,0.00017998,2]
[358096354,1744710638761,-500.0,0.00017998,2]
[358096356,1744710638771,-526.37565954,0.00017998,2]
[358096359,1744710638780,-500.0,0.00017998,2]
[358096362,1744710638789,-500.0,0.00017998,2]
[358096366,1744710638799,-500.0,0.00017998,2]
[358096369,1744710638808,-500.0,0.00017998,2]
[358096371,1744710638818,-524.32604248,0.00017998,2]
[358096373,1744710638827,-500.0,0.00017998,2]
[358096375,1744710638836,-500.0,0.00017998,2]
[358096377,1744710638846,-500.0,0.00017998,2]
[358096379,1744710638855,-500.0,0.00017998,2]
[358096381,1744710638866,-500.0,0.00017998,2]
[358096383,1744710638877,-500.0,0.00017998,2]
[358096385,1744710638887,-500.0,0.00017998,2]
[358096387,1744710638898,-500.0,0.00017998,2]
[358096389,1744710638908,-500.0,0.00017998,2]
[358096391,1744710638918,-500.0,0.00017998,2]
[358096393,1744710638927,-500.0,0.00017998,2]
[358096395,1744710638936,-500.0,0.00017998,2]
[358096397,1744710638945,-500.0,0.00017998,2]
[358096399,1744710638955,-500.0,0.00017998,2]
[358096401,1744710638964,-500.0,0.00017998,2]
[358096403,1744710638973,-500.0,0.00017998,2]
[358096405,1744710638983,-500.0,0.00017998,2]
[358096407,1744710638992,-500.0,0.00017998,2]
[358096409,1744710639002,-585.31134871,0.00017998,2]
[358096411,1744710639012,-500.0,0.00017998,2]
[358096413,1744710639022,-500.0,0.00017998,2]
[358096415,1744710639032,-500.0,0.00017998,2]
[358096417,1744710639041,-513.08037922,0.00017998,2]
[358096419,1744710639050,-500.0,0.00017998,2]
[358096421,1744710639060,-420.46055283,0.00017998,2]
[358096423,1744710639069,-500.0,0.00017998,2]
[358096425,1744710639078,-500.0,0.00017998,2]
[358096427,1744710639088,-500.0,0.00017998,2]
[358096429,1744710639098,-500.0,0.00017998,2]
[358096431,1744710639107,-500.0,0.00017998,2]
[358096433,1744710639116,-500.0,0.00017998,2]
[358096435,1744710639125,-300.0,0.00017998,2]
[358096437,1744710639134,-525.20981956,0.00017998,2]
[358096439,1744710639144,-500.0,0.00017998,2]
[358096441,1744710639153,-500.0,0.00017998,2]
[358096443,1744710639163,-521.22418692,0.00017998,2]
[358096445,1744710639172,-500.0,0.00017998,2]
[358096447,1744710639182,-500.0,0.00017998,2]
[358096449,1744710639191,-500.0,0.00017998,2]
[358096451,1744710639201,-500.0,0.00017998,2]
[358096453,1744710639210,-646.3347031,0.00017998,2]
[358096455,1744710639219,-500.0,0.00017998,2]
[358096457,1744710639230,-500.0,0.00017998,2]
[358096459,1744710639239,-213.89587466,0.00017998,2]
[358096461,1744710639248,-500.0,0.00017998,2]
[358096463,1744710639257,-500.0,0.00017998,2]
[358096465,1744710639267,-500.0,0.00017998,2]
[358096467,1744710639277,-500.0,0.00017998,2]
[358096469,1744710639286,-500.0,0.00017998,2]
[358096471,1744710639295,-501.38226077,0.00017998,2]
[358096473,1744710639304,-500.0,0.00017998,2]
[358096475,1744710639314,-500.0,0.00017998,2]
[358096477,1744710639323,-500.0,0.00017998,2]
[358096479,1744710639332,-500.0,0.00017998,2]
[358096481,1744710639341,-505.6159079,0.00017998,2]
[358096483,1744710639351,-500.0,0.00017998,2]
[358096485,1744710639362,-2000.0,0.00017998,2]
[358096486,1744710639375,-500.0,0.00017998,2]
[358096488,1744710639383,-500.0,0.00017998,2]
[358096490,1744710639394,-524.63404989,0.00017998,2]
[358096492,1744710639403,-500.0,0.00017998,2]
[358096494,1744710639412,-568.89809466,0.00017998,2]
[358096496,1744710639421,-500.0,0.00017998,2]
[358096498,1744710639430,-500.0,0.00017998,2]
[358096500,1744710639439,-500.0,0.00017998,2]
[358096502,1744710639449,-500.0,0.00017998,2]
[358096504,1744710639458,-500.0,0.00017998,2]
[358096506,1744710639468,-500.0,0.00017998,2]
[358096508,1744710639477,-500.0,0.00017998,2]
[358096510,1744710639486,-500.0,0.00017998,2]
[358096512,1744710639495,-500.0,0.00017998,2]
[358096514,1744710639505,-500.0,0.00017998,2]
[358096516,1744710639515,-176.03560252,0.00017998,2]
[358096517,1744710639524,-165.21020902,0.00017998,2]
[358096519,1744710639533,-558.94031554,0.00017998,2]
[358096521,1744710639542,-500.0,0.00017998,2]